bitfinex-derivatives/quotes_ETHF0:USTF0_20250911
["timestamp","ask_amount","ask_price","bid_price","bid_amount"]
[1757588929360,0.7131,4428.9,4428.8,0.4095]
[1757588929551,0.2959,4428.9,4428.8,0.7101]
[1757588929758,0.1165,4429.5,4428.9,0.40631]
[1757588929958,0.7131,4429.4,4429.3,0.2143]
[1757588930462,0.7131,4429.4,4429.3,0.4095]
[1757588931165,0.7131,4429.4,4429.3,0.7101]
[1757588931759,0.7131,4429.9,4429.8,0.2143]
[1757588932263,0.7131,4429.9,4429.4,0.3006]
[1757588932464,0.8296,4429.5,4429.4,0.7101]
[1757588934168,0.8296,4429.5,4429.4,0.4095]
[1757588939470,0.8296,4429.5,4429.4,0.81576]
[1757588939766,0.8296,4429.5,4429.4,0.4095]
[1757588941470,0.5018,4429.5,4429.4,1.11126]
[1757588942464,0.5018,4429.5,4429.4,0.705]
[1757588942772,0.5239,4429.5,4429.3,16.0396]
[1757588943073,0.3022,4429.4,4429.3,16.2348]
[1757588943262,0.7039,4429.4,4429.3,16.2348]
[1757588943574,0.7039,4429.4,4429.3,16.4042]
[1757588943969,0.7039,4429.4,4429.3,16.6997]
[1757588944170,0.7039,4429.4,4429.3,17.10597]
[1757588946074,0.7039,4429.4,4429.3,1.10597]
[1757588946666,0.7039,4429.4,4429.3,1.14567]
[1757588949369,0.5057,4429.4,4429.3,1.14567]
[1757588951274,0.5057,4429.9,4429.8,0.6997]
[1757588951474,0.7039,4429.9,4429.8,0.4042]
[1757588953878,0.7039,4429.9,4429.8,0.6997]
[1757588955671,0.7039,4429.9,4429.8,1.10592]
[1757588955873,0.7039,4429.9,4429.8,0.6997]
[1757588956381,0.5057,4429.9,4429.8,1.10592]
[1757588956782,0.7039,4429.9,4429.8,0.6997]
[1757588957377,0.7039,4429.9,4429.8,1.10592]
[1757588958182,32.855,4430.5,4430.4,0.1952]
[1757588958373,33.3554,4430.5,4430.4,0.1952]
[1757588958574,33.58111,4430.5,4430.4,0.1952]
[1757588958781,33.3554,4430.5,4430.1,0.2955]
[1757588958984,33.0532,4430.5,4430.0,0.4062]
[1757588959183,0.4017,4430.1,4430.0,0.8104]
[1757588959380,0.7039,4430.1,4430.0,1.1059]
[1757588959581,0.5057,4430.1,4430.0,1.1059]
[1757588959781,0.3022,4430.1,4430.0,1.1059]
[1757588963986,0.1165,4430.5,4430.2,0.40618]
[1757588964190,0.5057,4430.4,4430.3,0.6997]
[1757588964791,0.7039,4430.4,4430.3,0.6997]
[1757588967199,0.7039,4430.4,4430.3,1.10588]
[1757588967401,0.3022,4430.4,4430.3,1.10588]
[1757588967594,0.2966,4431.1,4431.0,0.40611]
[1757588967894,0.5047,4431.4,4431.3,0.7208]
[1757588968398,0.6979,4431.4,4431.3,0.7208]
[1757588968800,0.6979,4431.4,4431.3,0.4023]
[1757588969802,0.6979,4431.4,4431.3,0.7208]
[1757588970505,0.6979,4431.4,4431.3,0.4023]
[1757588971405,0.5224,4431.0,4430.9,0.9478]
[1757588971606,0.819,4431.0,4430.9,1.35392]
[1757588973605,0.5047,4431.0,4430.9,1.35392]
[1757588974200,0.5224,4431.0,4430.9,0.80842]
[1757588974400,0.5224,4431.0,4430.9,1.12692]
[1757588974909,0.819,4431.0,4430.9,1.12692]
[1757588975408,0.6979,4431.0,4430.9,1.12692]
[1757588975701,0.5047,4431.0,4430.9,1.12692]
[1757588975896,0.2966,4431.0,4430.9,1.12692]
[1757588976905,0.5047,4431.0,4430.9,1.12692]
[1757588977698,0.5047,4431.0,4430.9,1.35392]
[1757588978207,0.5047,4431.0,4430.9,1.39362]
[1757588978401,0.6258,4431.0,4430.9,0.7605]
[1757588978600,0.6258,4431.0,4430.9,1.16662]
[1757588979308,0.5047,4431.0,4430.9,1.16662]
[1757588980908,0.2966,4431.0,4430.9,1.16662]
[1757588981208,0.5047,4431.4,4431.3,1.12688]
[1757588981807,0.6979,4431.4,4431.3,1.12688]
[1757588982408,0.5047,4431.4,4431.3,1.12688]
[1757588982903,0.5047,4431.4,4431.3,17.12688]
[1757588983299,0.2966,4431.4,4431.3,17.12688]
[1757588983502,0.6979,4431.9,4431.8,0.4023]
[1757588983809,0.6979,4431.9,4431.8,0.7208]
[1757588984010,0.6979,4431.9,4431.8,0.4023]
[1757588985103,0.6979,4431.9,4431.8,1.12684]
[1757588985412,0.2966,4431.9,4431.8,1.12684]
[1757588985911,0.5047,4431.9,4431.8,1.12684]
[1757588986809,0.5047,4431.9,4431.8,0.7208]
[1757588988610,0.6979,4431.9,4431.4,0.3185]
[1757588988807,0.819,4431.5,4431.4,0.1957]
[1757588989112,0.819,4431.5,4431.4,0.4227]
[1757588989409,0.819,4431.5,4431.4,1.35388]
[1757588990503,0.6979,4431.5,4431.4,1.35388]
[1757588991112,0.5047,4431.5,4431.4,1.35388]
[1757588991310,0.2966,4431.9,4431.8,0.80834]
[1757588991606,0.2966,4431.9,4431.8,1.35384]
[1757588992615,0.5047,4431.9,4431.8,0.9478]
[1757588993214,0.5047,4431.9,4431.8,1.35384]
[1757588993408,0.5047,4431.9,4431.8,0.9478]
[1757588993908,0.6979,4431.9,4431.8,0.9478]
[1757588995113,0.6979,4431.9,4431.8,1.35384]
[1757588995416,0.6979,4431.9,4431.8,0.9478]
[1757588996913,0.6979,4431.9,4431.8,1.35384]
[1757588997114,0.6979,4431.9,4431.8,0.9478]
[1757588999818,0.6979,4431.9,4431.8,1.35384]
[1757589000017,0.6979,4431.9,4431.8,0.9478]
[1757589000418,0.8458,4431.5,4431.4,0.84527]
[1757589000619,0.8458,4431.5,4431.4,1.34937]
[1757589000818,0.5131,4431.5,4431.4,1.34937]
[1757589003122,0.5131,4431.5,4431.4,1.39997]
[1757589004823,0.5131,4431.5,4431.4,0.9939]
[1757589005521,0.8458,4431.5,4431.4,0.9939]
[1757589007116,0.8458,4431.5,4431.4,1.39998]
[1757589007719,0.8458,4431.5,4431.4,0.9939]
[1757589008524,0.8458,4431.5,4431.4,1.0336]
[1757589010318,0.8458,4431.5,4431.4,0.8066]
[1757589010524,0.8458,4431.5,4431.4,1.0336]
[1757589010925,0.8458,4431.5,4431.4,1.43968]
[1757589011422,0.8458,4431.5,4431.4,1.0336]
[1757589011725,0.8458,4431.5,4431.4,0.5295]
[1757589012324,0.8458,4431.5,4431.4,0.0903]
[1757589014436,0.8458,4431.5,4431.4,0.5046]
[1757589014623,0.5131,4431.5,4431.4,0.8066]
[1757589014932,0.8422,4432.0,4431.9,0.2122]
[1757589018927,0.8422,4432.0,4431.4,0.0903]
[1757589019229,0.8458,4431.5,4431.4,0.0903]
[1757589019529,0.8458,4431.5,4431.4,0.3173]
[1757589021024,0.8458,4431.5,4431.4,0.5295]
[1757589022126,0.8458,4431.5,4431.4,0.93558]
[1757589022334,0.8458,4431.5,4431.4,1.43968]
[1757589022830,0.3147,4432.0,4431.9,0.4143]
[1757589023036,0.5227,4432.0,4431.9,0.7163]
[1757589023535,0.8422,4432.0,4431.9,0.7163]
[1757589023829,0.8422,4432.0,4431.9,1.12233]
[1757589024237,0.5131,4432.0,4431.9,1.12233]
[1757589024430,0.3195,4432.0,4431.9,1.12233]
[1757589025121,0.5131,4432.0,4431.9,1.12233]
[1757589026631,0.6378,4432.0,4431.9,1.12233]
[1757589027832,0.6378,4432.0,4431.9,0.7163]
[1757589028934,0.6378,4432.0,4431.9,0.9433]
[1757589029227,0.8458,4432.0,4431.9,0.9433]
[1757589029434,0.1158,4431.5,4431.4,0.0397]
[1757589029626,0.7096,4431.2,4431.1,0.8057]
[1757589029833,0.41337943,4431.2,4431.1,16.9426]
[1757589030037,0.41337943,4431.2,4431.1,20.27667227]
[1757589031634,0.61697943,4431.2,4431.1,20.04967227]
[1757589031835,0.61697943,4431.2,4431.1,20.27667227]
[1757589032338,0.61697943,4431.2,4431.1,20.32727227]
[1757589032539,0.61697943,4431.2,4431.1,20.36687227]
[1757589034938,0.61697943,4431.2,4431.1,19.96077227]
[1757589035338,0.61697943,4431.2,4431.1,19.73377227]
[1757589035538,0.61697943,4431.2,4431.1,19.96077227]
[1757589036134,0.1949,4431.2,4431.1,19.96077227]
[1757589036335,0.506,4431.2,4431.1,19.96077227]
[1757589036540,0.1949,4431.2,4431.1,19.96077227]
[1757589036943,0.1247,4432.0,4431.1,19.64477227]
[1757589037242,0.7096,4431.3,4431.2,0.9426]
[1757589040538,0.1949,4431.3,4431.2,0.9426]
[1757589040739,0.3111,4431.6,4431.2,1.34869]
[1757589040935,0.1247,4432.0,4431.3,0.316]
[1757589041139,0.93525,4431.9,4431.8,0.5103]
[1757589042854,0.7096,4431.9,4431.8,0.5103]
[1757589044738,0.7096,4431.9,4431.8,0.7156]
[1757589048452,0.7096,4431.9,4431.8,0.7551]
[1757589049146,0.7096,4431.9,4431.8,0.0395]
[1757589054658,0.7096,4431.9,4431.8,0.0901]
[1757589054857,0.506,4431.9,4431.8,0.6004]
[1757589055052,0.506,4431.9,4431.8,0.8057]
[1757589056059,0.7096,4431.9,4431.8,0.8057]
[1757589056655,0.1211,4432.5,4431.8,0.4897]
[1757589056858,0.7096,4432.4,4432.3,0.7156]
[1757589057250,0.7096,4432.4,4432.3,0.5103]
[1757589057447,0.2906,4433.3,4432.4,0.3163]
[1757589057753,0.8339,4434.5,4434.4,0.1888]
[1757589057951,0.1228,4436.0,4434.4,0.1888]
[1757589057952,0.1228,4436.0,4434.6,0.3163]
[1757589058251,0.5433,4435.5,4435.4,0.7193]
[1757589058659,0.5433,4435.5,4434.6,2.98139897]
[1757589058869,0.5433,4435.5,4435.1,0.3163]
[1757589059049,0.5433,4435.5,4435.2,0.3163]
[1757589059560,0.5433,4435.0,4434.9,0.5171]
[1757589059854,0.8339,4435.0,4434.9,0.5171]
[1757589060551,0.2906,4434.9,4434.4,14.6163]
[1757589060753,0.7111,4434.9,4434.8,0.2008]
[1757589060953,0.7111,4434.9,4434.8,0.48690233]
[1757589061153,0.7111,4434.9,4434.8,0.80320233]
[1757589061951,0.7111,4434.9,4434.8,1.00540233]
[1757589065362,0.7111,4434.9,4434.8,0.80320233]
[1757589065858,0.7111,4434.9,4434.8,1.00540233]
[1757589066446,0.1228,4435.5,4434.8,1.00540233]
[1757589066656,0.4983,4435.4,4435.3,0.5171]
[1757589066854,0.7111,4435.4,4435.3,0.7193]
[1757589067055,0.7111,4435.4,4434.5,1.13589]
[1757589067056,0.7111,4435.4,4434.9,0.3163]
[1757589067253,0.7111,4435.4,4435.0,0.28469322]
[1757589067554,0.7111,4435.4,4434.9,0.3163]
[1757589067763,0.5433,4435.0,4434.5,0.40579]
[1757589068063,0.8339,4434.5,4433.5,0.1214]
[1757589068357,0.7111,4434.1,4434.0,1.12513]
[1757589069350,0.1228,4434.0,4433.5,0.1214]
[1757589069655,0.7111,4433.6,4433.5,0.403]
[1757589069857,0.7111,4433.6,4433.5,0.68780291]
[1757589070156,0.7111,4433.6,4433.5,0.403]
[1757589070357,0.7111,4433.6,4433.5,0.7193]
[1757589071957,0.7111,4433.6,4433.5,0.7586]
[1757589072149,0.7111,4433.6,4433.5,1.04357323]
[1757589074860,0.7111,4433.6,4433.5,1.04366391]
[1757589077355,0.7111,4433.6,4433.5,0.72736391]
[1757589077556,0.7111,4433.6,4433.5,0.32436391]
[1757589077857,0.7111,4432.7,4432.6,0.5171]
[1757589078057,0.7111,4432.7,4432.6,1.12527]
[1757589078262,0.7111,4432.7,4432.6,0.7193]
[1757589078757,0.7111,4432.7,4432.6,0.2008]
[1757589078951,0.2906,4432.6,4432.2,0.406]
[1757589079155,0.4983,4432.4,4432.3,1.12529]
[1757589079453,0.2256,4432.5,4432.4,0.7193]
[1757589082868,0.2256,4432.5,4432.4,1.12529]
[1757589083765,0.2256,4432.5,4432.4,0.7193]
[1757589083970,1.0595,4432.5,4432.4,0.403]
[1757589084164,1.0595,4432.5,4432.4,0.0506]
[1757589086768,1.0595,4432.5,4432.4,0.7699]
[1757589087064,0.9367,4432.5,4432.4,0.7699]
[1757589089669,0.9367,4432.5,4432.4,1.05764647]
[1757589089864,0.9367,4432.5,4432.4,1.46363647]
[1757589090471,0.9367,4432.5,4432.4,1.05764647]
[1757589091269,0.2256,4432.5,4432.4,1.46363647]
[1757589091470,0.7161,4433.4,4433.3,0.7022]
[1757589091675,0.7161,4433.4,4433.3,0.98994647]
[1757589092765,0.7161,4433.4,4433.3,1.39584647]
[1757589093072,0.2992,4433.4,4433.3,1.39584647]
[1757589093262,0.2992,4433.4,4433.3,0.98994647]
[1757589093469,0.7161,4433.4,4433.3,0.98994647]
[1757589097276,0.422,4434.0,4433.3,0.69974647]
[1757589097472,0.1216,4435.0,4433.9,1.10805]
[1757589097777,0.5397,4434.5,4434.4,0.4926]
[1757589097976,0.8389,4434.5,4434.4,0.98994647]
[1757589098179,0.7161,4434.5,4434.4,0.98994647]
[1757589098382,0.7161,4434.5,4434.4,1.39574647]
[1757589098579,0.5093,4434.5,4434.4,1.39574647]
[1757589099080,0.7161,4434.9,4434.8,0.2096]
[1757589099276,0.7161,4434.9,4434.8,0.98994647]
[1757589100280,0.7161,4434.9,4434.8,0.28774647]
[1757589100579,0.7161,4434.9,4434.8,0.28814972]
[1757589100873,0.2992,4434.8,4434.2,0.40582]
[1757589101080,0.4169,4434.4,4434.3,0.89630682]
[1757589101276,0.4169,4434.4,4434.3,1.39610682]
[1757589101472,0.7161,4434.4,4434.3,0.99029682]
[1757589103375,0.7161,4434.9,4434.8,0.4926]
[1757589103574,0.7161,4434.9,4434.8,0.99029682]
[1757589103975,0.7161,4434.9,4434.8,0.70009682]
[1757589104887,0.5093,4435.4,4435.3,0.7022]
[1757589105087,0.5093,4435.4,4435.3,0.99029682]
[1757589105280,0.5093,4435.4,4435.3,1.39601682]
[1757589105474,0.1216,4436.5,4435.9,0.412]
[1757589105784,0.7161,4437.0,4436.9,0.7022]
[1757589105981,0.8377,4437.0,4436.9,0.28809682]
[1757589106983,4.8377,4437.0,4435.9,0.2902]
[1757589107189,0.4169,4436.1,4436.0,14.78564904]
[1757589107482,0.7161,4436.1,4436.0,0.48564904]
[1757589107982,0.7161,4436.1,4436.0,0.28324904]
[1757589109683,0.7161,4436.1,4436.0,0.48564904]
[1757589110076,0.5093,4436.1,4436.0,0.98544904]
[1757589110285,0.5093,4436.1,4436.0,1.10694904]
[1757589110477,0.2101,4436.1,4436.0,1.10694904]
[1757589111182,0.5093,4436.4,4436.3,0.412]
[1757589111387,0.5093,4436.4,4436.3,0.7022]
[1757589112174,0.2101,4436.4,4436.3,0.7022]
[1757589113176,0.7161,4436.4,4435.5,14.8272]
[1757589113376,0.2992,4436.3,4435.6,0.69589]
[1757589113581,0.7161,4435.7,4435.6,0.7022]
[1757589113781,0.1216,4436.0,4435.6,0.7022]
[1757589113978,0.1216,4436.5,4435.7,0.2902]
[1757589113979,0.2992,4436.4,4435.7,0.2902]
[1757589114190,0.7161,4436.4,4436.3,0.7022]
[1757589114390,0.2101,4436.4,4436.3,0.7022]
[1757589114593,0.2101,4436.4,4436.3,0.412]
[1757589115285,0.2992,4436.9,4436.4,0.69582]
[1757589115491,0.7161,4436.9,4436.8,0.7022]
[1757589116689,0.2992,4436.9,4436.8,0.7022]
[1757589116883,0.7161,4436.9,4436.8,0.7022]
[1757589117890,0.1216,4437.5,4436.8,0.7022]
[1757589118194,0.5303,4436.9,4436.8,0.7022]
[1757589118389,0.1216,4437.5,4436.9,0.3067]
[1757589118590,0.3169,4437.4,4436.7,0.504]
[1757589118784,0.2134,4436.8,4436.7,0.6991]
[1757589118988,0.1216,4437.5,4436.9,0.40557]
[1757589119189,0.1216,4437.5,4437.3,0.6991]
[1757589119190,0.7388,4437.4,4437.3,0.6991]
[1757589119904,0.7388,4437.4,4437.3,0.98015933]
[1757589120108,0.2134,4437.4,4437.3,0.98015933]
[1757589120297,0.3169,4438.8,4438.4,0.1973]
[1757589120496,0.8636,4438.5,4438.4,0.28101867]
[1757589120702,0.8636,4438.5,4438.0,0.3067]
[1757589121005,0.8636,4438.5,4437.3,0.3067]
[1757589121208,0.8636,4438.5,4437.4,0.28113708]
[1757589121504,0.2134,4437.6,4437.5,0.78513708]
[1757589121701,0.7388,4437.6,4437.5,0.28113708]
[1757589121899,0.7388,4437.6,4437.5,0.98023708]
[1757589122503,0.1248,4438.0,4437.5,0.79373708]
[1757589122806,0.5303,4437.9,4437.8,0.6991]
[1757589122998,0.7388,4437.9,4437.8,0.98023708]
[1757589123198,0.7388,4437.9,4437.8,0.67353708]
[1757589123407,0.7388,4437.9,4437.8,0.98023708]
[1757589124210,0.5303,4438.0,4437.9,0.6991]
[1757589124406,0.1248,4439.0,4438.1,0.3067]
[1757589124611,0.2134,4438.5,4438.4,0.3924]
[1757589124906,0.2134,4438.5,4438.4,0.98018701]
[1757589125103,0.3169,4438.8,4438.5,0.1202]
[1757589125294,0.3169,4439.3,4438.8,0.3067]
[1757589125495,0.18297247,4440.9,4439.8,0.6991]
[1757589125694,0.1248,4441.0,4439.9,0.47838701]
[1757589125695,0.7388,4440.0,4439.9,0.47838701]
[1757589126003,0.97227894,4440.0,4439.9,0.28108701]
[1757589126197,1.26937894,4440.0,4439.9,0.67348701]
[1757589126398,1.39417894,4440.0,4439.9,0.28108701]
[1757589126603,5.39417894,4440.0,4439.9,0.28108701]
[1757589126897,1.39417894,4440.0,4439.9,0.47838701]
[1757589127098,0.53057894,4440.0,4439.9,0.98018701]
[1757589127298,0.74397894,4440.0,4439.9,0.98018701]
[1757589127501,1.06087894,4440.0,4439.9,0.98018701]
[1757589127709,1.39417894,4440.0,4439.9,0.6991]
[1757589128207,0.3169,4439.9,4439.8,0.1973]
[1757589128403,0.5303,4439.9,4439.8,0.9796121]
[1757589128602,0.5254,4439.9,4439.8,0.9796121]
[1757589128802,0.53057894,4440.0,4439.8,0.6991]
[1757589129007,0.54077894,4439.9,4439.8,0.1951]
[1757589129195,0.54077894,4439.9,4439.8,0.67271871]
[1757589129401,0.96267894,4439.9,4439.8,0.3924]
[1757589129806,0.54077894,4439.9,4439.8,0.3924]
[1757589130003,0.3169,4439.8,4439.1,14.3]
[1757589130206,0.3169,4439.8,4439.2,0.28020689]
[1757589130405,0.3169,4439.8,4439.1,14.3]
[1757589130406,0.7388,4439.8,4439.7,0.1973]
[1757589130608,0.7388,4439.8,4439.7,0.47750689]
[1757589130802,0.7388,4439.8,4439.7,0.28020689]
[1757589131110,0.3169,4439.7,4438.6,0.287]
[1757589131310,0.3169,4439.7,4438.7,0.2802813]
[1757589131508,0.4417,4439.5,4439.4,0.1973]
[1757589131712,0.4417,4439.5,4439.4,0.67263054]
[1757589131907,0.6551,4439.5,4439.4,0.95963054]
[1757589132107,0.22387894,4439.5,4439.4,0.95963054]
[1757589132710,0.3169,4440.2,4440.1,0.2022]
[1757589133110,0.7388,4440.2,4440.1,0.28013758]
[1757589134210,0.1248,4440.0,4438.9,0.0632]
[1757589134410,0.3169,4439.9,4439.0,0.28021542]
[1757589134605,0.3169,4439.9,4439.2,0.40536]
[1757589134801,0.3169,4439.9,4439.1,0.28021542]
[1757589134802,0.1248,4440.5,4439.9,0.0632]
[1757589135004,0.6551,4440.5,4440.4,0.2022]
[1757589135203,0.4417,4440.5,4440.4,0.48241623]
[1757589135415,0.4417,4440.5,4440.4,0.54561623]
[1757589135615,0.4639536,4440.5,4440.4,0.54561623]
[1757589135807,0.4639536,4440.5,4440.4,0.48230504]
[1757589136111,0.8858536,4440.5,4440.4,0.48230504]
[1757589136312,0.3169,4440.4,4440.1,14.3]
[1757589136612,0.5525536,4440.3,4440.2,0.48221649]
[1757589137314,0.7610536,4440.3,4440.2,0.28001649]
[1757589137511,0.8636,4439.5,4439.4,0.2022]
[1757589137816,0.8636,4439.5,4439.4,0.28002344]
[1757589138512,0.4417,4439.5,4439.4,0.48222344]
[1757589138712,0.4639536,4439.5,4439.4,0.53272344]
[1757589138914,0.4639536,4439.5,4439.4,0.59592344]
[1757589139110,0.6773536,4439.5,4439.4,0.53272344]
[1757589139822,0.8858536,4439.5,4439.4,0.43162344]
[1757589141118,0.8858536,4439.5,4439.4,0.33052344]
[1757589141823,0.8858536,4439.5,4439.4,2.344e-05]
[1757589142215,0.8858536,4439.5,4437.4,1.01381]
[1757589142216,2.255,4439.3,4435.8,0.7974846]
[1757589142411,1.20618807,4437.4,4435.5,0.1202]
[1757589142611,0.0222536,4436.5,4434.5,0.1202]
[1757589142917,1.20618807,4435.7,4434.0,0.1202]
[1757589143112,0.53331966,4436.4,4434.0,0.1202]
[1757589143113,1.20618807,4435.4,4434.0,0.1202]
[1757589143312,0.53331966,4435.3,4435.0,0.1202]
[1757589143519,0.53331966,4435.2,4435.0,0.1202]
[1757589143716,0.55557326,4435.1,4435.0,0.1202]
[1757589144423,0.76761884,4435.1,4435.0,0.1202]
[1757589144623,0.76761884,4435.1,4435.0,0.4269]
[1757589145121,0.77882336,4435.1,4435.0,0.4269]
[1757589145320,0.23429918,4435.1,4435.0,0.4269]
[1757589147527,0.0222536,4435.1,4435.0,0.4269]
[1757589149518,1.20618807,4438.3,4437.1,0.3194]
[1757589149829,0.75779499,4437.2,4437.1,0.3194]
[1757589150229,0.21533738,4437.2,4437.1,0.3194]
[1757589150823,14.322,4439.1,4437.1,0.3194]
[1757589151028,4.0,4437.2,4437.1,0.3194]
[1757589151220,4.21529901,4437.2,4437.1,0.3194]
[1757589151929,0.21529901,4437.2,4437.1,0.3194]
[1757589152729,4.21529901,4437.2,4437.1,0.3194]
[1757589153729,4.0,4437.2,4437.1,0.3194]
[1757589154422,0.2253,4437.3,4437.1,0.3194]
[1757589162830,1.79118085,4438.2,4438.1,0.3194]
[1757589163139,0.75826747,4438.2,4438.1,0.3194]
[1757589163540,0.75826747,4438.2,4438.0,0.1239]
[1757589163732,0.75826747,4438.1,4438.0,0.1239]
[1757589164037,0.98356747,4438.1,4438.0,0.1239]
[1757589164332,4.98356747,4438.1,4437.5,0.1239]
[1757589164541,0.75826747,4438.0,4437.5,0.1239]
[1757589164739,0.75826747,4437.9,4437.5,0.1239]
[1757589164939,0.21544215,4437.8,4437.5,0.1239]
[1757589165238,0.21544215,4437.7,4437.5,0.1239]
[1757589165433,0.77091957,4437.6,4437.5,0.4433]
[1757589166333,0.21544215,4437.6,4437.5,0.4433]
[1757589166534,0.21544215,4438.0,4437.5,0.4433]
[1757589166840,0.77144548,4437.9,4437.5,0.1239]
[1757589167041,0.21544215,4437.8,4437.5,0.1239]
[1757589167241,0.21544215,4437.7,4437.6,0.3194]
[1757589167438,0.21544215,4438.0,4437.6,0.3194]
[1757589167741,0.7720246,4437.9,4437.6,0.3194]
[1757589167942,0.7720246,4437.8,4437.5,0.1239]
[1757589168141,0.7720246,4437.7,4437.6,0.3194]
[1757589168541,4.7720246,4437.7,4437.6,0.3194]
[1757589168942,4.7720246,4437.7,4437.0,0.1239]
[1757589169136,0.7720246,4437.6,4437.0,0.1239]
[1757589169337,0.7720246,4437.5,4437.0,0.1239]
[1757589169636,0.7720246,4437.4,4437.0,0.1239]
[1757589169839,0.7720246,4437.3,4437.0,0.1239]
[1757589170040,0.7720246,4437.2,4437.0,0.1239]
[1757589170245,0.7720246,4437.1,4437.0,0.1239]
[1757589170947,0.7720246,4437.1,4437.0,0.4433]
[1757589172449,0.7720246,4437.1,4437.0,0.6525]
[1757589173554,0.7720246,4437.1,4437.0,0.8575]
[1757589173845,0.2253,4438.1,4437.9,0.3194]
[1757589174049,0.2253,4438.1,4438.0,0.8575]
[1757589175050,0.4312,4438.1,4438.0,0.8575]
[1757589176163,0.9399,4438.1,4438.0,0.8575]
[1757589176461,0.3994,4437.6,4437.5,0.3331]
[1757589176768,1.92667193,4437.6,4437.0,0.4433]
[1757589176952,0.3152,4437.5,4437.1,0.27313693]
[1757589177263,0.3994,4437.6,4437.1,0.7336]
[1757589177264,0.2059,4437.2,4437.1,0.7336]
[1757589177455,0.2059,4437.2,4437.1,1.00689761]
[1757589177658,0.2059,4437.2,4437.1,1.00689796]
[1757589178054,0.4312,4437.2,4437.1,1.00689796]
[1757589178253,0.2253,4437.2,4437.1,1.00689796]
[1757589179860,0.4391,4437.2,4437.1,1.00689796]
[1757589180559,0.2253,4437.2,4437.1,1.00689796]
[1757589180759,0.2253,4437.2,4437.1,0.7336]
[1757589181364,0.6448,4437.2,4437.1,0.7336]
[1757589182371,0.2253,4437.2,4437.1,0.7336]
[1757589184169,1.60680472,4438.5,4437.2,0.22536]
[1757589184370,1.60680472,4438.7,4437.2,0.22536]
[1757589184668,0.4234,4439.0,4437.0,0.1239]
[1757589184669,0.296,4438.9,4437.3,3.16506459]
[1757589184868,0.296,4438.9,4437.6,0.40551]
[1757589185061,0.1274,4439.0,4437.5,0.40551]
[1757589185267,0.296,4438.8,4437.4,14.70553]
[1757589185463,0.296,4438.7,4437.5,3.14339141]
[1757589185664,0.296,4438.7,4437.7,0.4055]
[1757589186078,0.296,4438.9,4437.4,14.3]
[1757589186275,0.5098,4438.7,4437.4,14.3]
[1757589186571,0.296,4438.4,4437.5,0.22532]
[1757589186970,0.296,4438.4,4437.6,0.22532999]
[1757589187159,0.296,4438.4,4437.4,14.3]
[1757589187160,0.296,4438.4,4437.5,0.22532999]
[1757589187668,0.296,4438.4,4437.6,0.22532999]
[1757589187970,0.296,4438.4,4437.5,0.40552]
[1757589188973,0.296,4438.4,4437.4,18.3]
[1757589189474,0.1274,4438.5,4437.6,0.4055]
[1757589189876,0.4234,4438.5,4437.6,0.4055]
[1757589190372,0.4234,4438.5,4437.7,0.4055]
[1757589190572,0.3412,4438.5,4437.5,0.40552]
[1757589190872,0.296,4438.2,4437.4,14.3]
[1757589191073,0.1274,4438.5,4437.4,14.70552]
[1757589191270,0.5098,4438.4,4437.4,14.70552]
[1757589191473,0.5098,4438.4,4437.5,0.40552]
[1757589191672,0.3412,4438.5,4437.5,0.40552]
[1757589191867,0.296,4438.4,4437.5,0.40552]
[1757589192175,0.296,4438.4,4437.7,0.40549]
[1757589192374,0.1274,4438.0,4437.7,0.40549]
[1757589192574,0.296,4437.9,4437.5,0.40552]
[1757589192770,0.296,4437.9,4437.6,0.40551]
[1757589192976,0.1274,4438.0,4437.6,0.40551]
[1757589193366,0.296,4437.9,4437.7,1.20139028]
[1757589193567,0.1274,4438.0,4437.7,1.20139028]
[1757589193874,0.296,4437.8,4437.7,1.20139028]
[1757589194072,0.3412,4438.0,4437.5,0.40551]
[1757589194277,0.296,4437.9,4437.8,1.20128434]
[1757589196182,0.4195,4437.9,4437.5,1.20128434]
[1757589196381,0.5098,4437.6,4437.2,1.20128434]
[1757589196678,0.1274,4437.0,4436.6,1.20128434]
[1757589197070,0.296,4436.9,4436.5,1.20128434]
[1757589197272,0.296,4436.9,4436.2,0.40564]
[1757589197273,0.296,4436.4,4436.3,1.20128434]
[1757589197472,0.296,4436.4,4436.2,0.40564]
[1757589198273,0.296,4436.4,4435.9,1.60938759]
[1757589198675,0.296,4436.4,4436.0,2.94009789]
[1757589198872,0.1274,4436.5,4436.2,0.40563]
[1757589199073,0.4234,4436.5,4436.4,1.20198632]
[1757589199274,0.296,4436.4,4436.3,1.20198632]
[1757589199577,0.5098,4436.3,4436.2,1.20198632]
[1757589199777,0.2138,4436.3,4436.1,1.20198632]
[1757589199973,0.1274,4436.5,4436.4,0.40562]
[1757589200578,0.1274,4436.5,4436.4,4.40562]
[1757589203178,0.4234,4436.5,4436.4,4.40562]
[1757589203485,0.4234,4436.5,4436.4,6.01500759]
[1757589204577,0.4234,4436.5,4436.4,6.31781565]
[1757589207688,0.4234,4436.5,4436.4,5.91219565]
[1757589207889,0.8221,4436.5,4436.4,0.30280806]
[1757589208884,4.8221,4436.5,4436.4,1.50718316]
[1757589209189,0.8221,4436.5,4436.4,0.30280806]
[1757589211488,0.8221,4436.5,4436.4,0.30316359]
[1757589215185,4.8221,4436.5,4436.4,0.30316359]
[1757589216585,4.8221,4436.5,4436.0,1.2043751]
[1757589216586,0.7152,4436.1,4436.0,1.2043751]
[1757589217193,4.7152,4436.1,4436.0,1.2043751]
[1757589217397,4.7152,4436.1,4435.7,1.2043751]
[1757589217398,0.8422,4436.0,4435.7,1.2043751]
[1757589217586,0.7152,4435.8,4435.7,1.2043751]